bitfinex/quotes_ETHUSD_20250404
["timestamp","ask_amount","ask_price","bid_price","bid_amount"]
[1743763930070,0.55,1784.8,1784.2,5.60471]
[1743763930270,4.38941965,1784.8,1783.9,10.0]
[1743763930475,0.55,1784.6,1784.0,5.60538]
[1743763930771,0.55,1784.4,1783.8,5.60599]
[1743763930922,0.55,1784.4,1783.6,10.0]
[1743763930923,1.5648,1784.3,1783.6,10.0]
[1743763931123,6.303,1784.5,1784.2,5.60464]
[1743763931366,6.303,1784.5,1784.3,5.60421]
[1743763931663,6.303,1784.5,1784.1,5.60489]
[1743763931978,0.55,1784.4,1784.1,5.60502]
[1743763932128,6.303,1784.5,1784.3,5.60416]
[1743763932332,6.303,1784.5,1784.0,5.60516]
[1743763932667,6.303,1784.5,1784.2,5.60451]
[1743763932837,6.303,1784.5,1784.3,5.6043]
[1743763933027,6.303,1784.5,1784.3,6.16473]
[1743763933230,6.303,1784.5,1784.3,6.16472]
[1743763933464,6.303,1784.5,1784.3,11.20854]
[1743763933658,6.303,1784.5,1784.3,5.60425]
[1743763934038,6.303,1784.5,1783.7,7.24876]
[1743763934039,6.303,1784.5,1784.0,5.60533]
[1743763934238,6.303,1784.5,1784.1,5.60493]
[1743763934472,6.303,1784.5,1784.3,5.60432]
[1743763934656,6.303,1784.5,1784.3,11.20864]
[1743763934835,6.303,1784.5,1784.2,5.60466]
[1743763935031,6.303,1784.5,1784.2,5.60458]
[1743763935227,6.303,1784.5,1784.3,5.60443]
[1743763935454,1.5648,1784.7,1784.5,5.60379]
[1743763935639,1.6179,1785.0,1784.3,1.5193]
[1743763935849,6.303,1784.9,1784.3,7.12356]
[1743763936069,6.303,1784.9,1784.5,5.60358]
[1743763936281,1.6179,1785.0,1784.5,5.6038]
[1743763936567,1.6179,1785.0,1784.4,5.60401]
[1743763936568,6.303,1784.9,1784.4,5.60401]
[1743763936769,0.55,1784.8,1784.3,5.60441]
[1743763936934,1.5507,1784.7,1784.1,5.60495]
[1743763937132,3.0,1784.5,1783.9,10.0]
[1743763937337,6.83941965,1784.3,1783.9,10.0]
[1743763937571,6.83941965,1784.3,1783.8,5.60589]
[1743763937762,7.8537,1784.4,1784.0,5.60527]
[1743763937969,0.55,1784.3,1783.5,11.2139]
[1743763938131,7.8537,1784.4,1783.5,5.60695]
[1743763938341,7.8537,1784.4,1783.3,3.83941965]
[1743763938539,6.303,1784.4,1784.3,5.60443]
[1743763938784,1.5227,1784.7,1784.5,5.6038]
[1743763938946,6.302,1784.7,1784.4,5.60407]
[1743763939155,6.302,1784.7,1784.1,5.60495]
[1743763939451,6.302,1784.7,1783.8,5.606]
[1743763939452,4.38941965,1784.5,1783.8,5.60582]
[1743763939646,4.38941965,1784.5,1783.8,11.21169]
[1743763939647,0.55,1784.3,1783.8,11.21169]
[1743763939852,6.302,1784.2,1783.7,5.60627]
[1743763940049,6.302,1784.2,1783.7,11.21242]
[1743763940272,6.302,1784.2,1783.7,6.727392]
[1743763940437,1.6486,1784.1,1783.7,1.121242]
[1743763940642,1.6486,1784.1,1783.7,5.60616]
[1743763940875,1.6486,1784.1,1783.8,5.60583]
[1743763941079,1.6486,1784.1,1783.7,5.60616]
[1743763941404,0.55,1784.0,1783.3,1.10369]
[1743763941676,0.55,1784.0,1783.6,5.60659]
[1743763941974,1.6486,1784.1,1783.7,5.60616]
[1743763942207,6.302,1784.0,1783.8,5.60589]
[1743763942534,6.302,1784.0,1783.8,11.21176]
[1743763942779,6.303,1784.2,1783.6,1.121352]
[1743763942987,6.303,1784.2,1783.9,5.60558]
[1743763943483,0.6302,1784.7,1784.2,5.60465]
[1743763943787,26.892,1785.2,1784.2,5.60465]
[1743763943788,6.303,1784.9,1784.8,5.60286]
[1743763944444,6.303,1784.9,1784.5,5.6038]
[1743763944668,6.303,1784.9,1784.6,5.60347]
[1743763944981,6.303,1784.9,1784.5,5.60377]
[1743763944982,6.303,1784.9,1784.7,5.60298]
[1743763945200,6.303,1784.9,1784.6,11.20671]
[1743763945513,6.303,1784.9,1784.7,5.60298]
[1743763945647,6.303,1784.9,1784.8,5.60286]
[1743763945848,6.302,1785.0,1784.9,5.60239]
[1743763946284,6.302,1785.2,1785.1,5.60177]
[1743763946509,1.6187,1785.6,1785.0,5.14374]
[1743763946687,1.6187,1785.6,1785.4,5.60086]
[1743763946890,6.302,1785.7,1785.4,5.60086]
[1743763947049,6.352,1785.9,1785.1,2.112374]
[1743763947249,0.05,1785.9,1785.8,5.59973]
[1743763947454,1e-05,1785.9,1785.8,7.19773]
[1743763947653,10.14001,1785.9,1785.8,8.477495]
[1743763947875,10.14001,1785.9,1785.8,7.19773]
[1743763948078,1e-05,1785.9,1785.8,7.2537206]
[1743763948281,7.9265,1786.8,1786.3,5.59799]
[1743763948760,7.9265,1786.8,1786.3,5.59809]
[1743763948946,7.9265,1786.8,1786.3,11.196]
[1743763949148,10.14,1786.7,1786.5,5.5974]
[1743763949356,10.14,1786.7,1786.4,5.59764]
[1743763949765,10.14,1786.7,1786.6,5.59722]
[1743763950085,10.14,1786.7,1786.5,5.59742]
[1743763950297,10.14,1786.8,1786.6,5.59717]
[1743763950480,10.14,1786.8,1786.7,5.59691]
[1743763950875,10.14,1786.8,1786.5,5.59749]
[1743763951197,10.14,1786.8,1786.4,5.59763]
[1743763951198,10.14,1786.8,1786.6,5.5971]
[1743763951398,10.14,1786.8,1786.7,5.59691]
[1743763951776,10.14,1786.8,1786.3,1.5794]
[1743763951980,6.297,1786.7,1786.2,5.59834]
[1743763952167,0.6297,1786.6,1786.3,5.59799]
[1743763952362,0.6297,1786.6,1786.2,5.59834]
[1743763952586,0.6297,1786.6,1786.0,7.19941]
[1743763952587,10.14,1786.5,1786.0,7.19941]
[1743763952991,10.14,1786.5,1786.1,5.59871]
[1743763953191,10.14,1786.5,1786.2,5.59823]
[1743763953497,10.14,1786.5,1786.3,5.59801]
[1743763953963,10.14,1786.5,1786.4,5.59785]
[1743763954599,0.05,1786.9,1786.8,5.59659]
[1743763954787,10.14,1787.5,1786.8,5.59655]
[1743763954989,10.14,1787.5,1787.1,5.59548]
[1743763955301,10.14,1787.5,1787.2,5.59514]
[1743763955473,10.14,1787.5,1787.0,5.59594]
[1743763955660,1.014,1787.4,1787.0,5.59594]
[1743763956308,1.014,1787.4,1786.8,1.6018]
[1743763956309,10.14,1787.5,1787.2,5.59533]
[1743763956469,10.14,1787.5,1787.0,5.59596]
[1743763957104,10.14,1787.5,1786.9,5.59627]
[1743763957271,0.55,1787.4,1786.8,5.59646]
[1743763957471,16.436,1787.3,1786.7,5.59676]
[1743763957671,1.5031,1787.1,1786.7,5.59676]
[1743763957874,1.6436,1787.2,1786.8,5.59632]
[1743763958081,1.6436,1787.2,1786.7,5.59665]
[1743763958292,10.14,1787.1,1786.7,5.59665]
[1743763958493,10.14,1787.1,1786.8,5.59647]
[1743763958670,11.31836,1787.1,1786.7,5.59665]
[1743763959578,11.31836,1787.1,1786.6,11.1942]
[1743763959802,11.31836,1787.1,1786.5,5.59751]
[1743763959975,1.58,1787.0,1786.4,5.59783]
[1743763960295,6.294,1786.9,1786.4,5.59783]
[1743763960503,2.2094,1786.8,1786.1,11.19715]
[1743763960809,10.69,1786.7,1786.2,5.59847]
[1743763961378,16.28705,1786.7,1785.9,5.59927]
[1743763961710,0.55,1786.3,1785.6,5.60021]
[1743763961871,0.55,1786.1,1785.6,5.60029]
[1743763962075,3.55,1786.1,1785.5,5.60062]
[1743763962295,3.55,1786.1,1785.4,15.60085]
[1743763962484,3.55,1786.1,1785.5,5.6006]
[1743763962808,10.14,1786.0,1785.5,5.6006]
[1743763962968,10.14,1786.0,1785.5,0.56006]
[1743763963174,10.14,1786.0,1785.5,5.60047]
[1743763963400,10.14,1786.0,1785.6,5.60025]
[1743763963775,10.14,1786.0,1785.6,5.60024]
[1743763963975,10.14,1786.0,1785.6,5.60019]
[1743763964175,10.14,1786.2,1785.9,5.59941]
[1743763964373,10.14,1786.2,1786.1,5.59879]
[1743763964590,18.0489,1786.4,1786.2,5.59836]
[1743763964908,18.0489,1786.4,1785.8,1.5566]
[1743763965117,18.0489,1786.4,1786.2,5.59847]
[1743763965335,19.85379,1786.4,1785.9,5.59941]
[1743763965500,19.85379,1786.4,1786.0,5.59907]
[1743763965697,0.55,1786.3,1785.7,11.19968]
[1743763965914,0.55,1786.3,1785.7,5.59978]
[1743763966121,10.14,1786.2,1785.6,5.60035]
[1743763966333,1.5488,1786.0,1785.6,5.60035]
[1743763966629,6.294,1785.9,1785.5,11.20115]
[1743763969411,18.0909,1786.1,1786.0,5.5991]
[1743763969620,18.0909,1786.1,1785.8,5.59959]
[1743763969821,18.0909,1786.1,1785.8,5.59952]
[1743763970222,18.0909,1786.1,1785.9,5.59924]
[1743763970223,10.14,1786.1,1785.9,5.59924]
[1743763970402,6.294,1786.2,1786.0,5.5991]
[1743763970724,6.294,1786.2,1786.1,5.59879]
[1743763971114,10.14,1786.3,1786.2,5.59847]
[1743763972290,16.434,1786.3,1786.1,5.59868]
[1743763972624,16.434,1786.3,1786.2,5.59847]
[1743763973412,16.434,1786.3,1786.2,6.718185]
[1743763973628,16.434,1786.3,1786.1,12.80638]
[1743763973824,16.434,1786.3,1785.8,5.5995]
[1743763974049,1.5035,1786.2,1785.8,5.59973]
[1743763974526,10.69,1786.1,1785.7,5.13973]
[1743763974829,11.90935,1786.1,1785.6,11.2005]
[1743763974988,6.06,1785.7,1785.6,11.2005]
[1743763975195,6.293,1785.9,1785.8,5.59973]
[1743763975523,6.06,1785.9,1785.8,5.59973]
[1743763975726,6.06,1785.9,1785.8,7.26463]
[1743763975905,10.14,1786.1,1785.9,5.59941]
[1743763975906,6.06,1786.0,1785.9,5.59941]
[1743763976427,6.06,1786.2,1786.1,5.59879]
[1743763976923,6.294,1786.8,1786.7,5.59691]
[1743763977113,12.354,1786.8,1786.6,5.59709]
[1743763977312,12.354,1786.8,1786.7,5.59691]
[1743763977691,6.06,1786.8,1786.7,5.59691]
[1743763978425,6.06,1786.8,1786.5,5.59752]
[1743763978724,6.06,1786.8,1786.6,11.19429]
[1743763978889,6.06,1786.8,1786.5,5.59749]
[1743763979096,13.973,1786.8,1786.4,5.59778]
[1743763979296,13.973,1786.8,1786.5,5.59751]
[1743763979623,13.973,1786.8,1786.3,5.59798]
[1743763979817,6.06,1786.7,1786.3,11.19601]
[1743763980037,6.06,1786.7,1786.3,5.59816]
[1743763980210,6.06,1786.7,1786.6,5.59722]
[1743763980450,6.06,1786.8,1786.7,5.59691]
[1743763981190,1.638,1786.7,1786.4,0.559816]
[1743763981335,1.638,1786.2,1786.0,10.0]
[1743763981560,3.0,1786.0,1785.1,1.5888]
[1743763981763,6.06,1785.9,1785.5,5.60042]
[1743763981978,6.06,1785.9,1785.6,5.60031]
[1743763982268,6.432,1785.8,1785.3,5.60127]
[1743763982467,6.432,1785.8,1785.6,5.60008]
[1743763982768,6.432,1785.8,1785.6,5.60028]
[1743763982969,6.432,1785.8,1785.6,5.60025]
[1743763983268,6.06,1785.9,1785.8,5.59973]
[1743763983469,6.06,1786.3,1786.2,5.59847]
[1743763983701,12.484,1786.4,1786.1,5.59866]
[1743763983881,12.484,1786.4,1785.5,7.1453]
[1743763983882,12.484,1786.4,1785.5,7.14542]
[1743763984084,0.55,1786.3,1785.8,5.59943]
[1743763984283,12.484,1786.4,1786.0,5.59902]
[1743763984481,12.484,1786.4,1786.0,11.19797]
[1743763984667,12.484,1786.4,1785.9,5.59938]
[1743763984870,12.484,1786.4,1785.9,5.59929]
[1743763985178,12.484,1786.4,1786.0,5.59888]
[1743763985374,12.484,1786.4,1785.9,6.159219]
[1743763985603,12.484,1786.4,1786.0,5.59898]
[1743763985806,12.484,1786.4,1786.1,5.59859]
[1743763986167,12.484,1786.4,1786.0,11.19804]
[1743763986367,6.41,1786.3,1786.1,5.59858]
[1743763986593,6.41,1786.3,1785.6,6.314862]
[1743763986793,7.6629,1786.2,1785.3,17.24729]
[1743763986998,6.61,1786.1,1785.5,5.60064]
[1743763987406,6.61,1786.1,1785.4,5.60097]
[1743763987407,1.5206,1785.9,1785.4,11.20178]
[1743763987602,12.476,1785.8,1785.5,5.60038]
[1743763987903,12.476,1785.8,1785.7,5.60004]
[1743763988106,6.06,1785.8,1785.7,6.720077]
[1743763989205,6.06,1785.8,1785.7,5.60004]
[1743763989407,6.06,1785.8,1785.6,5.60021]
[1743763989587,6.06,1785.8,1785.5,5.60061]
[1743763989787,7.6789,1785.8,1785.4,11.20184]
[1743763989985,7.6789,1785.8,1785.5,11.20121]
[1743763990302,6.06,1785.8,1785.7,5.60004]
[1743763990622,6.06,1785.8,1785.5,5.60051]
[1743763990788,6.666,1785.8,1785.4,5.60098]
[1743763991127,6.666,1785.8,1785.1,0.05]
[1743763991128,1.5047,1785.7,1785.1,0.05]
[1743763991326,0.55,1785.6,1785.1,0.05]
[1743763991474,6.395,1785.5,1785.1,5.65189]
[1743763991685,6.06,1785.4,1785.1,5.65189]
[1743763992118,2.19,1785.3,1785.1,0.05]
[1743763992286,3.55,1785.2,1785.1,0.05]
[1743763992492,8.97341965,1785.2,1785.1,0.05]
[1743763992733,8.97341965,1785.2,1784.2,5.60447]
[1743763992734,1.584,1784.9,1784.2,5.60447]
[1743763992948,12.96,1784.8,1784.3,5.60429]
[1743763993243,12.96,1784.8,1784.3,0.560429]
[1743763993444,12.96,1784.8,1784.2,5.60471]
[1743763993736,12.96,1784.8,1784.2,5.60457]
[1743763994236,1.5803,1784.7,1784.1,5.65487]
[1743763994387,6.01,1784.6,1784.1,5.65487]
[1743763994589,6.56,1784.5,1784.1,0.05]
[1743763994813,12.393,1784.4,1784.1,0.05]
[1743763995896,12.393,1784.4,1784.2,5.60465]
[1743763996117,12.393,1784.4,1784.1,0.05]
[1743763996118,12.393,1784.4,1784.1,5.65495]
[1743763996505,12.393,1784.4,1784.1,5.65491]
[1743763996720,12.393,1784.4,1784.1,0.05]
[1743763996916,14.95531965,1784.3,1784.1,0.05]
[1743763997333,20.55974965,1784.3,1784.1,0.05]
[1743763997537,14.95531965,1784.3,1784.1,0.05]
[1743763999011,20.55987965,1784.3,1784.1,0.05]
[1743763999217,1.5797,1783.8,1783.5,5.60681]
[1743763999423,16.00390349,1783.7,1783.1,5.60794]
[1743763999629,0.55,1783.4,1783.0,10.0]
[1743763999938,12.19548384,1783.3,1782.9,5.60866]
[1743764000253,8.0272,1783.2,1782.7,5.60917]
[1743764000547,8.0272,1783.2,1782.9,5.60861]
[1743764000907,8.0272,1783.2,1782.8,5.60902]
[1743764001105,8.0272,1783.2,1782.7,11.21871]
[1743764001325,8.0272,1783.2,1782.8,5.60902]
[1743764001525,5.80848384,1783.1,1782.3,10.0]
[1743764001722,5.80848384,1783.0,1782.3,15.61071]
[1743764002061,3.83941965,1782.8,1782.3,15.61066]
[1743764002221,5.80848384,1782.8,1782.7,5.60946]
[1743764003341,5.80848384,1783.1,1782.9,5.60873]
[1743764003508,5.80848384,1783.1,1783.0,0.560873]
[1743764003714,5.80848384,1783.1,1782.9,5.60873]
[1743764004125,5.80848384,1783.1,1782.8,5.60914]
[1743764004454,5.80848384,1783.0,1782.6,5.60974]
[1743764004754,5.80848384,1783.0,1782.9,5.60883]
[1743764005315,5.80848384,1783.0,1782.1,11.6657]
[1743764005660,0.55,1782.8,1782.5,5.61009]
[1743764005812,12.19848384,1782.7,1782.3,5.61066]
[1743764006150,12.19848384,1782.7,1782.3,5.61054]
[1743764006452,12.19848384,1782.7,1782.4,5.61028]
[1743764007207,12.19848384,1782.7,1782.3,5.6107]
[1743764007412,12.19848384,1782.7,1782.3,5.61056]
[1743764007727,6.376,1782.6,1782.4,5.61027]
[1743764007947,6.376,1782.6,1782.4,11.22045]
[1743764008124,5.80848384,1782.7,1782.6,5.60978]
[1743764008528,5.80848384,1782.7,1782.5,5.61005]
[1743764008725,5.80848384,1782.7,1782.5,5.60995]
[1743764009054,12.17748384,1782.7,1782.4,5.61022]
[1743764009440,12.17748384,1782.7,1782.3,5.6107]
[1743764009639,12.17748384,1782.7,1782.3,11.2212]
[1743764009954,12.17748384,1782.7,1782.5,5.60989]
[1743764010131,12.17748384,1782.7,1782.4,5.6104]
[1743764010331,12.17748384,1782.7,1782.5,5.60988]
[1743764010632,12.17748384,1782.7,1782.4,11.22076]
[1743764010815,12.17748384,1782.7,1782.3,6.73281]
[1743764011015,12.17748384,1782.7,1782.3,5.61069]
[1743764011245,12.17748384,1782.7,1782.5,5.60998]
[1743764011430,6.365,1782.6,1782.4,5.61039]
[1743764011958,6.365,1782.6,1782.4,5.6102]
[1743764012164,5.80848384,1782.7,1782.6,5.60978]
[1743764012452,12.16648384,1782.7,1782.4,5.61039]
[1743764012755,12.16648384,1782.7,1782.5,5.61007]
[1743764013046,12.16648384,1782.7,1782.5,5.60989]
[1743764013215,12.16648384,1782.7,1782.4,5.6104]
[1743764013415,12.16648384,1782.7,1782.6,5.60978]
[1743764013849,5.80848384,1782.7,1782.6,6.731766]
[1743764015722,0.12365384,1783.1,1783.0,5.60852]
[1743764016460,6.335,1783.4,1783.2,5.60777]
[1743764016820,1.72225384,1783.3,1783.0,5.60849]
[1743764017352,1.72225384,1783.3,1783.1,5.60808]
[1743764018656,1.72225384,1783.3,1783.0,5.6085]
[1743764018841,1.72225384,1783.3,1782.6,6.731476]
[1743764019041,1.72225384,1783.3,1783.2,5.60789]
[1743764019281,1.72225384,1783.3,1783.1,5.60811]
[1743764019853,1.72225384,1783.3,1783.0,5.60834]
[1743764020059,1.72225384,1783.3,1782.7,0.6731476]
[1743764020261,0.12365384,1783.2,1783.0,5.60823]
[1743764020469,0.12365384,1783.2,1783.1,5.60821]
[1743764021783,0.12365384,1783.2,1783.0,6.169053]
[1743764022145,1.5924,1783.1,1782.9,5.6088]
[1743764022345,6.309,1783.0,1782.9,5.6088]
[1743764022541,6.43265384,1783.0,1782.7,6.2825776]
[1743764022784,6.43265384,1783.0,1782.7,5.60943]
[1743764022982,6.43265384,1783.0,1782.5,5.61005]
[1743764023284,0.12365384,1782.9,1782.5,5.60993]
[1743764023794,1.5528,1782.8,1782.5,5.60988]
[1743764023941,6.306,1782.8,1782.7,5.60946]
[1743764024682,6.306,1782.8,1782.5,11.21998]
[1743764024683,1.6319,1782.7,1782.5,11.21998]
[1743764024842,1.6319,1782.7,1782.4,5.61038]
[1743764025176,1.6319,1782.7,1782.0,10.0]
[1743764025380,0.12365384,1782.6,1782.5,5.60995]
[1743764025784,0.12365384,1782.6,1782.5,5.61009]
[1743764026675,0.12365384,1782.6,1782.4,5.61025]
[1743764026856,0.12365384,1782.6,1782.5,5.61009]
[1743764027981,6.45665384,1782.6,1782.5,5.61009]
[1743764029293,6.45665384,1782.6,1782.4,5.61025]
[1743764029888,8.06825384,1782.6,1782.5,5.61009]
[1743764030387,6.45665384,1782.6,1782.5,5.61009]
[1743764030760,6.45665384,1782.6,1782.3,5.61055]
[1743764030975,6.45665384,1782.6,1782.4,5.61027]
[1743764031376,6.45665384,1782.6,1782.4,5.61024]
[1743764031553,6.45665384,1782.6,1782.4,6.171264]
[1743764031892,6.45665384,1782.6,1782.5,5.61009]
[1743764032192,0.12365384,1782.6,1782.5,5.61009]
[1743764032345,0.12365384,1782.6,1782.5,7.19399]
[1743764033561,0.12365384,1782.6,1782.5,7.2500814]
[1743764033766,6.307,1782.9,1782.8,5.60915]
[1743764034001,0.12365384,1783.2,1782.8,5.60915]
[1743764034159,6.307,1783.1,1783.0,5.60828]
[1743764034497,6.307,1783.1,1783.0,11.21664]
[1743764035300,0.12365384,1783.2,1783.0,11.21664]
[1743764035470,0.12365384,1783.2,1783.1,6.729874]
[1743764035679,6.307,1783.3,1783.2,5.60789]
[1743764035908,6.307,1783.3,1783.1,5.60821]
[1743764036262,6.43065384,1783.3,1783.0,11.21687]
[1743764036803,6.43065384,1783.3,1783.1,5.6081]
[1743764036997,6.43065384,1783.3,1783.2,5.60789]
[1743764037380,1.5813,1783.6,1783.4,5.60716]
[1743764037381,6.307,1783.5,1783.4,5.60716]
[1743764037767,1.5813,1783.6,1783.5,5.60695]
[1743764037971,6.43065384,1783.7,1783.5,5.60695]
[1743764038359,6.43065384,1783.7,1783.5,5.60684]
[1743764038561,6.43065384,1783.7,1783.5,5.60682]
[1743764038768,6.43065384,1783.7,1783.6,5.60663]
[1743764038961,6.43065384,1783.7,1783.5,5.60682]
[1743764039573,6.43065384,1783.7,1783.6,5.60663]
[1743764039809,6.43065384,1783.7,1783.5,11.21367]
[1743764039973,6.43065384,1783.7,1783.5,5.60682]
[1743764040174,6.43065384,1783.7,1783.4,5.60724]
[1743764040175,6.43065384,1783.7,1783.4,11.21436]
[1743764040515,7.07371922,1783.7,1783.2,5.60774]
[1743764042033,0.12365384,1783.5,1783.1,5.6082]
[1743764042176,1.5435,1783.3,1782.9,5.60873]
[1743764042519,6.306,1783.2,1782.8,5.60915]
[1743764042698,6.42965384,1783.2,1782.9,5.60868]
[1743764042906,6.42965384,1783.2,1782.9,5.60872]
[1743764043108,6.42965384,1783.2,1783.1,5.60821]
[1743764045213,0.12365384,1783.2,1783.1,5.66428875]
[1743764045430,0.12365384,1783.5,1783.4,5.60726]
[1743764045774,0.12365384,1783.5,1783.3,5.60741]
[1743764046403,0.12365384,1783.5,1783.2,11.2156]
[1743764046714,1.5164,1783.4,1783.0,11.21685]
[1743764046925,1.5164,1783.4,1783.0,11.21678]
[1743764047076,1.5164,1783.4,1783.0,11.21679]
[1743764047409,0.12365384,1783.5,1782.9,3.0]
[1743764047709,0.12365384,1783.5,1783.4,5.60726]
[1743764048487,0.12365384,1783.5,1783.4,6.72873]
[1743764049904,0.12365384,1783.5,1783.4,5.60726]
[1743764050101,0.12365384,1783.5,1783.3,5.60744]
[1743764050417,1.78765384,1783.5,1783.4,5.60726]
[1743764050600,1.78765384,1783.5,1783.3,5.60741]
[1743764050805,1.78765384,1783.5,1783.3,11.21485]
[1743764051206,1.78765384,1783.5,1783.4,5.60726]
[1743764051731,0.12365384,1783.5,1783.4,6.728727]
[1743764051931,0.12365384,1783.5,1783.3,5.60741]
[1743764052301,0.12365384,1783.5,1783.0,5.60835]
[1743764052302,1.5013,1783.4,1783.0,5.60835]
[1743764052607,0.12365384,1783.3,1782.9,5.60879]
[1743764052807,0.12365384,1783.3,1783.1,5.60802]
[1743764053598,0.12365384,1783.3,1783.2,5.60789]
[1743764053805,0.12365384,1783.3,1783.2,1.121591]
[1743764054022,0.12365384,1783.3,1783.1,5.60802]
[1743764054227,0.12365384,1783.3,1783.1,11.21608]
[1743764054411,0.12365384,1783.3,1783.2,5.60789]
[1743764054612,0.12365384,1783.3,1783.1,5.60802]
[1743764054923,0.12365384,1783.3,1783.2,5.60789]
[1743764055733,0.12365384,1783.3,1783.1,5.60802]
[1743764055915,0.12365384,1783.3,1783.2,5.60789]
[1743764056114,0.12365384,1783.3,1783.1,5.60802]
[1743764056314,0.12365384,1783.3,1783.2,5.60789]
[1743764056741,0.12365384,1783.3,1783.2,7.290288]
[1743764057549,0.12365384,1783.3,1783.2,5.60789]
[1743764057767,0.12365384,1783.3,1783.1,11.21611]
[1743764057970,0.12365384,1783.3,1783.2,5.60789]
[1743764058861,6.304,1783.5,1783.4,5.60726]
[1743764059237,0.12365384,1783.6,1783.5,5.60695]
[1743764059561,0.12365384,1783.6,1783.5,6.728371]
[1743764060155,0.12365384,1783.6,1783.4,5.60726]
[1743764060463,0.12365384,1783.6,1783.3,5.60757]
[1743764060979,0.12365384,1783.6,1783.5,5.60695]
[1743764061185,6.42765384,1783.6,1783.5,5.60695]
[1743764061764,6.42765384,1783.6,1783.3,5.60756]
[1743764062066,1.6194,1783.5,1783.2,5.60784]
[1743764062268,1.6194,1783.5,1783.3,5.60749]
[1743764062568,1.6194,1783.5,1783.2,5.6078]
[1743764062768,1.6194,1783.5,1783.2,11.21555]
[1743764063086,1.6194,1783.5,1783.4,5.60726]
[1743764063270,1.6194,1783.5,1783.3,5.60742]
[1743764063563,6.42765384,1783.6,1783.4,5.60726]
[1743764063765,6.42765384,1783.6,1783.5,5.60695]
[1743764063944,6.42765384,1783.6,1783.4,5.60726]
[1743764064141,6.42765384,1783.6,1783.3,5.60751]
[1743764064347,6.42765384,1783.6,1783.3,5.60743]
[1743764064548,7.07041922,1783.6,1783.2,5.60784]
[1743764064847,6.42765384,1783.6,1783.4,5.60726]
[1743764065043,6.42765384,1783.6,1783.4,5.60712]
[1743764065577,6.42765384,1783.6,1783.4,11.21424]
[1743764065775,0.12365384,1783.6,1783.5,5.60695]
[1743764067791,0.12365384,1784.0,1783.8,5.606]
[1743764068106,6.42765384,1784.0,1783.8,5.60588]
[1743764068262,6.42765384,1784.0,1783.7,5.60626]
[1743764068463,6.42765384,1784.0,1783.6,5.60647]
[1743764068669,1.6366,1783.9,1783.6,11.21299]
[1743764068987,1.6366,1783.9,1783.6,5.60647]
[1743764069551,1.6366,1783.9,1783.7,5.60615]
[1743764069785,1.6366,1783.9,1783.6,5.6064]
[1743764069987,1.6366,1783.9,1783.7,5.60615]
[1743764070151,1.6366,1783.9,1783.3,5.60757]
[1743764070152,0.12365384,1783.8,1783.6,5.60644]
[1743764070354,0.12365384,1783.8,1783.7,5.60632]
[1743764070893,1.74055384,1784.2,1784.1,5.60506]
[1743764071096,0.12365384,1784.2,1784.1,5.60506]
[1743764071297,1.6169,1784.7,1784.6,5.60349]
[1743764071605,6.06,1784.7,1784.5,5.60358]
[1743764071753,12.363,1784.7,1784.6,5.60349]
[1743764072372,12.363,1784.7,1784.5,5.60358]
[1743764072573,6.06,1784.7,1784.6,5.60349]
[1743764073000,6.302,1785.0,1784.9,5.60255]
[1743764073573,6.302,1785.0,1784.8,5.60274]
[1743764073775,6.302,1785.0,1784.8,11.20545]
[1743764073975,6.302,1785.0,1784.8,5.60271]
[1743764074172,6.302,1785.0,1784.7,11.20617]
[1743764074434,6.302,1785.0,1784.7,5.60304]
[1743764074789,6.302,1785.0,1784.6,11.20684]
[1743764074986,6.302,1785.0,1784.7,5.60302]
[1743764075798,6.302,1785.0,1784.6,5.60338]
[1743764075998,7.5382,1785.0,1784.5,7.23007]
[1743764076234,13.14046,1785.0,1784.4,5.6041]
[1743764076439,1.6604,1784.9,1784.3,7.23583]
[1743764076609,1.6604,1784.9,1784.5,5.60367]
[1743764076804,1.6604,1784.9,1784.4,5.6041]
[1743764077012,2.58026,1784.9,1784.4,5.6041]
[1743764077211,2.58026,1784.9,1784.4,11.20803]
[1743764077414,2.58026,1784.9,1784.4,5.60393]
[1743764077627,1.6604,1784.9,1784.5,5.60377]
[1743764077934,1.6604,1784.9,1784.3,1.6315]
[1743764078145,7.7204,1784.9,1784.5,5.60357]
[1743764078344,7.7204,1784.9,1784.5,11.20721]
[1743764078505,7.7204,1784.9,1784.5,5.60357]
[1743764078912,5.60304,1784.8,1784.3,1.6315]
[1743764079327,11.66304,1784.8,1784.3,1.6315]
[1743764079529,6.06,1784.8,1784.4,5.60407]
[1743764079746,6.06,1784.8,1784.0,7.16374]
[1743764079912,7.84241,1784.7,1784.1,5.60502]
[1743764080243,6.849,1784.6,1784.0,12.7688]
[1743764080442,7.6931,1784.5,1783.8,5.60588]
[1743764080599,0.55,1784.4,1783.7,5.60603]
[1743764080806,6.06,1784.3,1783.6,7.16495]
[1743764081122,6.06,1784.3,1783.6,1.5584]
[1743764081305,12.359,1784.3,1784.0,5.60512]
[1743764081940,12.359,1784.3,1783.8,5.60599]
[1743764082130,12.359,1784.3,1783.8,11.21184]
[1743764082331,13.6499,1784.3,1783.9,5.60566]
[1743764082639,13.6499,1784.3,1783.8,5.60585]